fUST/lending_fUST_20250722
["ID","MTS","AMOUNT","RATE_DAILY","PERIOD"]
[374080008,1753197041894,-2523.3574228,0.0001721,2]
[374080009,1753197041904,-211.40425046,0.00017339,2]
[374080010,1753197041916,-248.59574954,0.00017339,2]
[374080011,1753197041926,-460.0,0.00017339,2]
[374080012,1753197041935,-460.0,0.00017339,2]
[374080013,1753197041944,-460.0,0.00017339,2]
[374080014,1753197041954,-886.97,0.00017339,2]
[374080015,1753197041963,-460.0,0.0001734,2]
[374080016,1753197041973,-460.0,0.0001734,2]
[374080017,1753197041983,-333.73833604,0.0001734,2]
[374080018,1753197041992,-460.0,0.0001734,2]
[374080019,1753197042001,-175.58,0.0001734,2]
[374080020,1753197042012,-163.78116535,0.0001734,2]
[374080021,1753197042024,-296.21883465,0.0001734,2]
[374080022,1753197042033,-460.0,0.0001734,2]
[374080023,1753197042042,-460.0,0.0001734,2]
[374080024,1753197042051,-460.0,0.0001734,2]
[374080025,1753197042060,-2348.86,0.0001734,2]
[374080026,1753197042069,-148.38515363,0.0001734,2]
[374080027,1753197042081,-311.61484637,0.0001734,2]
[374080028,1753197042091,-460.0,0.0001734,2]
[374080029,1753197042101,-460.0,0.0001734,2]
[374080030,1753197042113,-1422.65,0.0001734,2]
[374080031,1753197042122,-460.0,0.0001734,2]
[374080032,1753197042132,-77.27579692,0.0001734,2]
[374080033,1753197042143,-382.72420308,0.0001734,2]
[374080034,1753197042153,-460.0,0.0001734,2]
[374080035,1753197042162,-460.0,0.0001734,2]
[374080036,1753197042171,-460.0,0.0001734,2]
[374080037,1753197042181,-195.66833806,0.0001734,2]
[374080038,1753197042192,-411.85166194,0.0001734,2]
[374080039,1753197042202,-871.9,0.0001734,2]
[374080040,1753197042211,-460.0,0.0001734,2]
[374080041,1753197042221,-24.60712066,0.0001734,2]
[374080042,1753197042233,-435.39287934,0.0001734,2]
[374080043,1753197042242,-460.0,0.0001734,2]
[374080044,1753197042252,-118.65228844,0.0001734,2]
[374080045,1753197042297,-460.0,0.00016865,2]
[374080046,1753197042306,-460.0,0.00017139,2]
[374080047,1753197042316,-597.11771156,0.0001734,2]
[374080048,1753197042326,-460.0,0.0001734,2]
[374080049,1753197042336,-460.0,0.0001734,2]
[374080050,1753197042349,-460.0,0.0001734,2]
[374080051,1753197042358,-460.0,0.0001734,2]
[374080052,1753197042367,-460.0,0.0001734,2]
[374080053,1753197042376,-460.0,0.0001734,2]
[374080054,1753197042386,-460.0,0.0001734,2]
[374080055,1753197042395,-460.0,0.0001734,2]
[374080056,1753197042405,-460.0,0.0001734,2]
[374080057,1753197042414,-326.56248257,0.0001734,2]
[374080058,1753197042426,-303.43,0.0001734,2]
[374080059,1753197042437,-107.25751743,0.0001734,2]
[374080060,1753197042447,-460.0,0.0001734,2]
[374080061,1753197042456,-460.0,0.0001734,2]
[374080062,1753197042465,-460.0,0.0001734,2]
[374080063,1753197042475,-460.0,0.0001734,2]
[374080064,1753197042484,-460.0,0.0001734,2]
[374080065,1753197042494,-460.0,0.00017411,2]
[374080066,1753197042503,-460.0,0.00017411,2]
[374080067,1753197042515,-460.0,0.00017411,2]
[374080068,1753197042528,-460.0,0.00017411,2]
[374080069,1753197042538,-460.0,0.00017411,2]
[374080070,1753197042548,-460.0,0.00017411,2]
[374080071,1753197042558,-460.0,0.00017411,2]
[374080072,1753197042567,-460.0,0.00017411,2]
[374080073,1753197042577,-460.0,0.00017412,2]
[374080074,1753197042586,-912.88,0.00017412,2]
[374080075,1753197042596,-460.0,0.00017412,2]
[374080076,1753197042606,-460.0,0.00017412,2]
[374080077,1753197042615,-460.0,0.00017412,2]
[374080078,1753197042625,-460.0,0.00017412,2]
[374080079,1753197042635,-460.0,0.00017412,2]
[374080080,1753197042644,-460.0,0.00017412,2]
[374080081,1753197042653,-1325.56,0.00017412,2]
[374080082,1753197042663,-460.0,0.00017412,2]
[374080083,1753197042673,-486.33,0.00017412,2]
[374080084,1753197042683,-251.21080644,0.00017412,2]
[374080085,1753197042692,-503.2,0.00017412,2]
[374080086,1753197042702,-460.0,0.00017412,2]
[374080087,1753197042711,-460.0,0.00017413,2]
[374080088,1753197042721,-460.0,0.00017413,2]
[374080089,1753197042731,-460.0,0.00017413,2]
[374080090,1753197042740,-460.0,0.00017413,2]
[374080091,1753197042750,-460.0,0.00017413,2]
[374080093,1753197042760,-460.0,0.00017413,2]
[374080094,1753197042769,-460.0,0.00017413,2]
[374080095,1753197042778,-460.0,0.00017413,2]
[374080096,1753197042788,-460.0,0.00017413,2]
[374080097,1753197042797,-460.0,0.00017413,2]
[374080098,1753197042806,-460.0,0.00017413,2]
[374080099,1753197042815,-460.0,0.00017413,2]
[374080100,1753197042825,-460.0,0.00017413,2]
[374080101,1753197042835,-460.0,0.00017413,2]
[374080102,1753197042844,-460.0,0.00017413,2]
[374080103,1753197042854,-460.0,0.00017413,2]
[374080104,1753197042863,-587.05899473,0.00017413,2]
[374080105,1753197042873,-460.0,0.00017413,2]
[374080106,1753197042883,-460.0,0.00017414,2]
[374080107,1753197042893,-460.0,0.00017414,2]
[374080108,1753197042902,-460.0,0.00017414,2]
[374080109,1753197042912,-258.50268141,0.00017414,2]
[374080161,1753197043589,-201.49731859,0.00017414,2]
[374080163,1753197043599,-460.0,0.00017414,2]
[374080165,1753197043609,-460.0,0.00017414,2]
[374080167,1753197043618,-460.0,0.00017414,2]
[374080168,1753197043628,-460.0,0.00017414,2]
[374080170,1753197043638,-460.0,0.00017414,2]
[374080171,1753197043647,-463.3970163,0.00017414,2]
[374080173,1753197043657,-460.0,0.00017414,2]
[374080175,1753197043667,-460.0,0.00017414,2]
[374080177,1753197043676,-460.0,0.00017414,2]
[374080179,1753197043686,-1109.92550581,0.00017414,2]
[374080180,1753197043698,-1655.76449419,0.00017414,2]
[374080181,1753197043708,-509.61271658,0.00017414,2]
[374080182,1753197043717,-460.0,0.00017414,2]
[374080183,1753197043727,-463.40718438,0.00017414,2]
[374080184,1753197043737,-460.0,0.00017414,2]
[374080185,1753197043746,-460.0,0.00017414,2]
[374080186,1753197043756,-460.0,0.00017415,2]
[374080187,1753197043768,-472.6425536,0.00017415,2]
[374080188,1753197043778,-460.0,0.00017415,2]
[374080189,1753197043788,-2582.91196913,0.00017415,2]
[374080190,1753197043800,-870.0,0.00017415,2]
[374080191,1753197043811,-458.81803087,0.00017415,2]
[374080192,1753197043821,-460.0,0.00017415,2]
[374080193,1753197043831,-651.39,0.00017415,2]
[374080194,1753197043840,-460.0,0.00017416,2]
[374080195,1753197043850,-1316.16,0.00017416,2]
[374080196,1753197043859,-460.0,0.00017416,2]
[374080197,1753197043869,-869.54,0.00017416,2]
[374080198,1753197043878,-1624.65,0.00017416,2]
[374080199,1753197043887,-969.07,0.00017416,2]
[374080200,1753197043897,-500.0,0.00017421,2]
[374080202,1753197043906,-1000.0,0.00017421,2]
[374080204,1753197043916,-500.0,0.00017428,2]
[374080206,1753197043926,-548.06828774,0.00017464,2]
[374080208,1753197043935,-500.0,0.00017464,2]
[374080209,1753197043946,-527.18424808,0.00017464,2]
[374080210,1753197043955,-2523.3574228,0.00017521,2]
[374080211,1753197043964,-500.0,0.00017553,2]
[374080212,1753197043973,-500.0,0.00017553,2]
[374080213,1753197043983,-500.0,0.00017553,2]
[374080214,1753197043992,-460.0,0.00017613,2]
[374080215,1753197044001,-460.0,0.00017613,2]
[374080216,1753197044013,-886.97,0.00017613,2]
[374080217,1753197044022,-460.0,0.00017614,2]
[374080218,1753197044032,-460.0,0.00017614,2]
[374080219,1753197044042,-460.0,0.00017614,2]
[374080220,1753197044051,-189.59,0.00017614,2]
[374080221,1753197044061,-460.0,0.00017614,2]
[374080222,1753197044071,-460.0,0.00017614,2]
[374080223,1753197044080,-2348.86,0.00017614,2]
[374080224,1753197044090,-460.0,0.00017614,2]
[374080225,1753197044100,-320.37891063,0.00017614,2]
[374080226,1753197044109,-1422.65,0.00017614,2]
[374080227,1753197044119,-460.0,0.00017614,2]
[374080228,1753197044128,-460.0,0.00017614,2]
[374080229,1753197044137,-460.0,0.00017614,2]
[374080230,1753197044147,-460.0,0.00017614,2]
[374080231,1753197044156,-460.0,0.00017614,2]
[374080232,1753197044165,-607.52,0.00017614,2]
[374080233,1753197044175,-871.9,0.00017614,2]
[374080234,1753197044184,-460.0,0.00017614,2]
[374080235,1753197044193,-460.0,0.00017614,2]
[374080236,1753197044203,-715.77,0.00017614,2]
[374080237,1753197044213,-216.94005789,0.00017614,2]
[374080378,1753197047650,-460.0,0.00016792,2]
[374080380,1753197047659,-460.0,0.00017066,2]
[374080382,1753197047669,-502.02656241,0.0001734,2]
[374080384,1753197047678,-243.05994211,0.00017614,2]
[374080386,1753197047688,-140.50064879,0.00017614,2]
[374080389,1753197047707,-319.49935121,0.00017614,2]
[374080391,1753197047716,-62.42883332,0.00017614,2]
[374080393,1753197047727,-397.57116668,0.00017614,2]
[374080395,1753197047737,-460.0,0.00017614,2]
[374080397,1753197047746,-460.0,0.00017614,2]
[374080399,1753197047755,-737.25,0.00017614,2]
[374080401,1753197047768,-460.0,0.00017614,2]
[374080403,1753197047778,-460.0,0.00017614,2]
[374080406,1753197047787,-460.0,0.00017614,2]
[374080407,1753197047797,-397.17783779,0.00017681,2]
[374080410,1753197047810,-105.29216221,0.00017681,2]
[374080412,1753197047819,-460.0,0.00017685,2]
[374080414,1753197047829,-460.0,0.00017685,2]
[374080416,1753197047839,-460.0,0.00017685,2]
[374080418,1753197047848,-460.0,0.00017685,2]
[374080420,1753197047858,-460.0,0.00017685,2]
[374080422,1753197047867,-460.0,0.00017685,2]
[374080424,1753197047877,-460.0,0.00017685,2]
[374080426,1753197047886,-460.0,0.00017686,2]
[374080428,1753197047895,-912.88,0.00017686,2]
[374080430,1753197047905,-460.0,0.00017686,2]
[374080432,1753197047914,-460.0,0.00017686,2]
[374080434,1753197047923,-460.0,0.00017686,2]
[374080436,1753197047933,-460.0,0.00017686,2]
[374080438,1753197047942,-1325.56,0.00017686,2]
[374080440,1753197047951,-460.0,0.00017686,2]
[374080442,1753197047960,-486.33,0.00017686,2]
[374080444,1753197047970,-503.2,0.00017686,2]
[374080446,1753197047979,-305.42983637,0.00017686,2]
[374080448,1753197047989,-460.0,0.00017687,2]
[374080450,1753197047998,-460.0,0.00017687,2]
[374080452,1753197048008,-460.0,0.00017687,2]
[374080454,1753197048021,-460.0,0.00017687,2]
[374080455,1753197048030,-460.0,0.00017687,2]
[374080457,1753197048040,-460.0,0.00017687,2]
[374080459,1753197048050,-460.0,0.00017687,2]
[374080461,1753197048060,-460.0,0.00017687,2]
[374080463,1753197048070,-152.13470352,0.00017687,2]
[374080465,1753197048080,-460.0,0.00017687,2]
[374080467,1753197048090,-460.0,0.00017687,2]
[374080469,1753197048099,-460.0,0.00017687,2]
[374080471,1753197048109,-431.14768298,0.00017687,2]
[374080473,1753197048119,-460.0,0.00017687,2]
[374080475,1753197048128,-460.0,0.00017687,2]
[374080477,1753197048138,-460.0,0.00017688,2]
[374080479,1753197048148,-460.0,0.00017688,2]
[374080481,1753197048158,-460.0,0.00017688,2]
[374080483,1753197048169,-458.03268078,0.00017688,2]
[374080485,1753197048178,-460.0,0.00017688,2]
[374080487,1753197048188,-460.0,0.00017688,2]
[374080489,1753197048197,-460.0,0.00017688,2]
[374080491,1753197048206,-460.0,0.00017688,2]
[374080492,1753197048216,-460.0,0.00017688,2]
[374080494,1753197048225,-2765.69,0.00017688,2]
[374080496,1753197048234,-426.63469732,0.00017688,2]
[374080498,1753197048244,-460.0,0.00017688,2]
[374080500,1753197048254,-460.0,0.00017688,2]
[374080502,1753197048264,-460.0,0.00017689,2]
[374080504,1753197048274,-3911.73,0.00017689,2]
[374080506,1753197048284,-460.0,0.00017689,2]
[374080508,1753197048294,-651.39,0.00017689,2]
[374080510,1753197048303,-460.0,0.0001769,2]
[374080512,1753197048313,-1316.16,0.0001769,2]
[374080514,1753197048323,-460.0,0.0001769,2]
[374080516,1753197048334,-869.54,0.0001769,2]
[374080518,1753197048348,-1624.65,0.0001769,2]
[374080520,1753197048357,-969.07,0.0001769,2]
[374080522,1753197048367,-215.0738,0.00017742,2]
[374080524,1753197048377,-151.0,0.00017742,2]
[374080526,1753197048389,-151.0,0.00017742,2]
[374080528,1753197048399,-151.0,0.00017742,2]
[374080530,1753197048408,-151.0,0.00017742,2]
[374080532,1753197048418,-151.0,0.00017742,2]
[374080534,1753197048429,-151.0,0.00017742,2]
[374080536,1753197048439,-151.0,0.00017742,2]
[374080538,1753197048449,-151.0,0.00017742,2]
[374080540,1753197048459,-151.0,0.00017742,2]
[374080542,1753197048468,-151.0,0.00017742,2]
[374080544,1753197048478,-151.0,0.00017742,2]
[374080546,1753197048488,-151.0,0.00017742,2]
[374080548,1753197048497,-151.0,0.00017742,2]
[374080550,1753197048507,-278.67023657,0.00017742,2]
[374080552,1753197048520,-151.0,0.00017742,2]
[374080554,1753197048529,-151.0,0.00017742,2]
[374080556,1753197048539,-151.0,0.00017742,2]
[374080558,1753197048549,-151.0,0.00017742,2]
[374080559,1753197048558,-151.0,0.00017742,2]
[374080561,1753197048568,-151.0,0.00017742,2]
[374080563,1753197048577,-151.0,0.00017742,2]
[374080566,1753197048587,-151.0,0.00017742,2]
[374080567,1753197048597,-151.0,0.00017742,2]
[374080569,1753197048607,-151.0,0.00017742,2]
[374080572,1753197048617,-151.0,0.00017742,2]
[374080573,1753197048627,-151.0,0.00017742,2]
[374080575,1753197048637,-151.0,0.00017742,2]
[374080578,1753197048647,-25000.0,0.00017742,2]
[374080579,1753197048656,-22881.77246113,0.00017742,2]
[374080581,1753197048666,-153.71945571,0.0001778,2]
[374080583,1753197048675,-821.61580969,0.00017788,2]
[374080585,1753197048685,-2000.0,0.000178,3]
[374080587,1753197048694,-2523.3574228,0.00017831,2]
[374080589,1753197048704,-460.0,0.00017887,2]
[374080591,1753197048713,-460.0,0.00017887,2]
[374080593,1753197048723,-886.97,0.00017887,2]
[374080595,1753197048739,-460.0,0.00017888,2]
[374080597,1753197048757,-212.79863758,0.00017888,2]
[374080599,1753197048770,-460.0,0.00017888,2]
[374080601,1753197048780,-460.0,0.00017888,2]
[374080603,1753197048790,-2348.86,0.00017888,2]
[374080605,1753197048800,-1422.65,0.00017888,2]
[374080607,1753197048809,-460.0,0.00017888,2]
[374080609,1753197048818,-460.0,0.00017888,2]
[374080611,1753197048828,-460.0,0.00017888,2]
[374080613,1753197048838,-460.0,0.00017888,2]
[374080615,1753197048847,-460.0,0.00017888,2]
[374080617,1753197048856,-871.9,0.00017888,2]
[374080619,1753197048866,-607.52,0.00017888,2]
[374080621,1753197048875,-460.0,0.00017888,2]
[374080622,1753197048885,-460.0,0.00017888,2]
[374080624,1753197048895,-715.77,0.00017888,2]
[374080626,1753197048905,-460.0,0.00017888,2]
[374080628,1753197048914,-460.0,0.00017888,2]
[374080630,1753197048924,-460.0,0.00017888,2]
[374080632,1753197048933,-460.0,0.00017888,2]
[374080634,1753197048943,-460.0,0.00017888,2]
[374080636,1753197048953,-737.25,0.00017888,2]
[374080638,1753197048962,-460.0,0.00017888,2]
[374080640,1753197048971,-460.0,0.00017888,2]
[374080642,1753197048981,-460.0,0.00017888,2]
[374080644,1753197048991,-160.0,0.00017906,2]
[374080646,1753197049000,-215.80012421,0.00017906,2]
[374080648,1753197049010,-160.0,0.00017906,2]
[374080650,1753197049021,-526.07605158,0.00017906,2]
[374080652,1753197049031,-231.06963584,0.00017906,2]
[374080654,1753197049040,-160.0,0.00017906,2]
[374080656,1753197049050,-476.60259688,0.00017906,2]
[374080658,1753197049059,-160.0,0.00017906,2]
[374080660,1753197049068,-12619.94447631,0.00017906,2]
[374080662,1753197049078,-214.6393183,0.00017906,2]
[374080673,1753197049179,-160.0,0.00017906,2]
[374080675,1753197049190,-160.0,0.00017906,2]
[374080677,1753197049200,-160.0,0.00017906,2]
[374080679,1753197049210,-160.0,0.00017906,2]
[374080681,1753197049221,-839.90542673,0.00017906,2]
[374080683,1753197049231,-460.0,0.00017959,2]
[374080685,1753197049240,-460.0,0.00017959,2]
[374080687,1753197049250,-460.0,0.00017959,2]
[374080689,1753197049259,-460.0,0.00017959,2]
[374080690,1753197049271,-460.0,0.00017959,2]
[374080692,1753197049280,-460.0,0.00017959,2]
[374080694,1753197049290,-912.88,0.0001796,2]
[374080696,1753197049300,-460.0,0.0001796,2]
[374080698,1753197049310,-460.0,0.0001796,2]
[374080700,1753197049320,-460.0,0.0001796,2]
[374080702,1753197049330,-1325.56,0.0001796,2]
[374080704,1753197049342,-460.0,0.0001796,2]
[374080706,1753197049353,-486.33,0.0001796,2]
[374080708,1753197049362,-503.2,0.0001796,2]
[374080710,1753197049371,-460.0,0.00017961,2]
[374080712,1753197049382,-460.0,0.00017961,2]
[374080714,1753197049392,-460.0,0.00017961,2]
[374080716,1753197049401,-460.0,0.00017961,2]
[374080718,1753197049411,-460.0,0.00017961,2]
[374080720,1753197049422,-460.0,0.00017961,2]
[374080722,1753197049431,-460.0,0.00017961,2]
[374080724,1753197049441,-460.0,0.00017961,2]
[374080726,1753197049450,-460.0,0.00017961,2]
[374080728,1753197049461,-460.0,0.00017961,2]
[374080730,1753197049471,-151.0,0.00017961,2]
[374080732,1753197049480,-153.336485,0.00017961,2]
[374080734,1753197049490,-460.0,0.00017961,2]
[374080736,1753197049499,-154.094237,0.00017961,2]
[374080738,1753197049508,-460.0,0.00017962,2]
[374080740,1753197049520,-460.0,0.00017962,2]
[374080742,1753197049530,-460.0,0.00017962,2]
[374080744,1753197049541,-431.08721199,0.00017962,2]
[374080746,1753197049551,-385.76382827,0.00017962,2]
[374080748,1753197049561,-460.0,0.00017962,2]
[374080750,1753197049570,-460.0,0.00017962,2]
[374080752,1753197049580,-2765.69,0.00017962,2]
[374080754,1753197049590,-3911.73,0.00017963,2]
[374080756,1753197049599,-460.0,0.00017963,2]
[374080758,1753197049609,-651.39,0.00017963,2]
[374080760,1753197049618,-460.0,0.00017964,2]
[374080762,1753197049628,-1316.16,0.00017964,2]
[374080764,1753197049638,-460.0,0.00017964,2]
[374080767,1753197049648,-869.54,0.00017964,2]
[374080769,1753197049657,-1624.65,0.00017964,2]
[374080771,1753197049667,-969.07,0.00017964,2]
[374080772,1753197049676,-1500.0,0.00017968,2]
[374080774,1753197049685,-278.02060332,0.00018012,2]
[374080776,1753197049697,-505.7834431,0.000181,2]
[374080778,1753197049706,-1026.12808574,0.000181,2]
[374080780,1753197049716,-2523.3574228,0.00018141,2]
[374080782,1753197049725,-460.0,0.00018161,2]
[374080784,1753197049735,-460.0,0.00018161,2]
[374080786,1753197049744,-886.97,0.00018161,2]
[374080788,1753197049754,-460.0,0.00018162,2]
[374080790,1753197049764,-460.0,0.00018162,2]
[374080792,1753197049773,-2348.86,0.00018162,2]
[374080794,1753197049782,-1422.65,0.00018162,2]
[374080796,1753197049792,-460.0,0.00018162,2]
[374080798,1753197049802,-460.0,0.00018162,2]
[374080800,1753197049811,-460.0,0.00018162,2]
[374080802,1753197049821,-460.0,0.00018162,2]
[374080804,1753197049831,-151.0,0.00018162,2]
[374080806,1753197049840,-871.9,0.00018162,2]
[374080808,1753197049850,-607.52,0.00018162,2]
[374080810,1753197049860,-151.0,0.00018162,2]
[374080812,1753197049869,-460.0,0.00018162,2]
[374080814,1753197049879,-460.0,0.00018162,2]
[374080816,1753197049888,-151.0,0.00018162,2]
[374080818,1753197049898,-715.77,0.00018162,2]
[374080820,1753197049907,-151.0,0.00018162,2]
[374080822,1753197049918,-460.0,0.00018162,2]
[374080824,1753197049928,-460.0,0.00018162,2]
[374080826,1753197049937,-460.0,0.00018162,2]
[374080828,1753197049947,-460.0,0.00018162,2]
[374080830,1753197049956,-460.0,0.00018162,2]
[374080832,1753197049966,-737.25,0.00018162,2]
[374080834,1753197049976,-460.0,0.00018162,2]
[374080836,1753197049985,-460.0,0.00018162,2]
[374080838,1753197049995,-460.0,0.00018162,2]
[374080840,1753197050004,-151.0,0.00018233,2]
[374080842,1753197050015,-460.0,0.00018233,2]
[374080844,1753197050024,-460.0,0.00018233,2]
[374080846,1753197050034,-460.0,0.00018233,2]
[374080848,1753197050044,-460.0,0.00018233,2]
[374080850,1753197050054,-352.7,0.00018233,2]
[374080852,1753197050063,-460.0,0.00018233,2]
[374080854,1753197050073,-912.88,0.00018234,2]
[374080855,1753197050082,-460.0,0.00018234,2]
[374080856,1753197050092,-460.0,0.00018234,2]
[374080857,1753197050102,-562.42767198,0.00018234,2]
[374080858,1753197050111,-1325.56,0.00018234,2]
[374080859,1753197050121,-460.0,0.00018234,2]
[374080860,1753197050130,-486.33,0.00018234,2]
[374080861,1753197050141,-503.2,0.00018234,2]
[374080862,1753197050151,-460.0,0.00018235,2]
[374080863,1753197050160,-460.0,0.00018235,2]
[374080864,1753197050169,-460.0,0.00018235,2]
[374080865,1753197050178,-460.0,0.00018235,2]
[374080866,1753197050188,-561.34,0.00018235,2]
[374080867,1753197050197,-460.0,0.00018235,2]
[374080868,1753197050206,-460.0,0.00018235,2]
[374080869,1753197050216,-460.0,0.00018235,2]
[374080870,1753197050225,-460.0,0.00018235,2]
[374080871,1753197050235,-460.0,0.00018235,2]
[374080872,1753197050244,-424.03,0.00018235,2]
[374080873,1753197050254,-460.0,0.00018236,2]
[374080874,1753197050263,-460.0,0.00018236,2]
[374080875,1753197050272,-460.0,0.00018236,2]
[374080876,1753197050282,-460.0,0.00018236,2]
[374080877,1753197050291,-460.0,0.00018236,2]
[374080878,1753197050301,-2765.69,0.00018236,2]
[374080879,1753197050311,-3911.73,0.00018237,2]
[374080880,1753197050321,-460.0,0.00018237,2]
[374080881,1753197050330,-651.39,0.00018237,2]
[374080882,1753197050341,-460.0,0.00018238,2]
[374080883,1753197050352,-1316.16,0.00018238,2]
[374080884,1753197050362,-460.0,0.00018238,2]
[374080885,1753197050371,-869.54,0.00018238,2]
[374080886,1753197050381,-1624.65,0.00018238,2]
[374080888,1753197050391,-969.07,0.00018238,2]
[374080890,1753197050400,-25000.0,0.0001829,2]
[374080892,1753197050410,-151.0,0.0001829,2]
[374080894,1753197050420,-151.0,0.0001829,2]
[374080895,1753197050430,-151.0,0.0001829,2]
[374080898,1753197050440,-151.0,0.0001829,2]
[374080899,1753197050449,-151.0,0.0001829,2]
[374080901,1753197050458,-420.0,0.00018342,2]
[374080903,1753197050468,-1267.0,0.00018433,2]
[374080906,1753197050478,-576.96083341,0.00018435,2]
[374080908,1753197050487,-454.21,0.00018435,2]
[374080910,1753197050496,-886.97,0.00018435,2]
[374080911,1753197050506,-460.0,0.00018436,2]
[374080914,1753197050518,-460.0,0.00018436,2]
[374080915,1753197050528,-2348.86,0.00018436,2]
[374080918,1753197050538,-1422.65,0.00018436,2]
[374080919,1753197050547,-460.0,0.00018436,2]
[374080921,1753197050557,-460.0,0.00018436,2]
[374080923,1753197050566,-460.0,0.00018436,2]
[374080925,1753197050576,-460.0,0.00018436,2]
[374080927,1753197050586,-871.9,0.00018436,2]
[374080929,1753197050595,-607.52,0.00018436,2]
[374080931,1753197050605,-460.0,0.00018436,2]
[374080933,1753197050614,-331.82757342,0.00018436,2]
[374080935,1753197050624,-715.77,0.00018436,2]
[374080937,1753197050633,-460.0,0.00018436,2]
[374080939,1753197050642,-460.0,0.00018436,2]
[374080941,1753197050652,-438.74,0.00018436,2]
[374080943,1753197050661,-460.0,0.00018436,2]
[374080945,1753197050670,-460.0,0.00018436,2]
[374080947,1753197050679,-737.25,0.00018436,2]
[374080949,1753197050688,-460.0,0.00018436,2]
[374080951,1753197050698,-460.0,0.00018436,2]
[374080953,1753197050707,-460.0,0.00018436,2]
[374080955,1753197050717,-2523.3574228,0.00018452,2]
[374080957,1753197050726,-160.0,0.0001849,2]
[374080959,1753197050735,-460.0,0.00018507,2]
[374080961,1753197050744,-460.0,0.00018507,2]
[374080963,1753197050754,-460.0,0.00018507,2]
[374080965,1753197050766,-460.0,0.00018507,2]
[374080967,1753197050775,-460.0,0.00018507,2]
[374080969,1753197050784,-151.0,0.00018508,2]
[374080971,1753197050793,-912.88,0.00018508,2]
[374080973,1753197050802,-460.0,0.00018508,2]
[374080975,1753197050811,-460.0,0.00018508,2]
[374080977,1753197050822,-184.877116,0.00018508,2]
[374080979,1753197050833,-184.877116,0.00018508,2]
[374080981,1753197050843,-1325.56,0.00018508,2]
[374080983,1753197050852,-460.0,0.00018508,2]
[374080985,1753197050861,-486.33,0.00018508,2]
[374080987,1753197050870,-503.2,0.00018508,2]
[374080989,1753197050880,-460.0,0.00018509,2]
[374080991,1753197050889,-460.0,0.00018509,2]
[374080993,1753197050898,-460.0,0.00018509,2]
[374080995,1753197050907,-460.0,0.00018509,2]
[374080997,1753197050917,-460.0,0.00018509,2]
[374080999,1753197050926,-550.92734134,0.00018509,2]
[374081001,1753197050936,-460.0,0.00018509,2]
[374081003,1753197050945,-460.0,0.00018509,2]
[374081005,1753197050954,-446.3261383,0.00018509,2]
[374081007,1753197050964,-469.86368413,0.0001851,2]
[374081009,1753197050973,-460.0,0.0001851,2]
[374081011,1753197050982,-460.0,0.0001851,2]
[374081013,1753197050991,-460.0,0.0001851,2]
[374081015,1753197051000,-460.0,0.0001851,2]
[374081017,1753197051010,-2765.69,0.0001851,2]